[Event "Early-Titled-Tuesday-Blitz-March-26-2024"]
[Site "Chess.com"]
[Date "2024.03.26"]
[Round "1"]
[White "martabartel"]
[Black "Kotlyar_K"]
[Result "1/2-1/2"]
[WhiteElo "2201"]
[BlackElo "2587"]
[TimeControl "180+1"]
[EndTime "8:10:09 PDT"]
[Termination "Game drawn by stalemate"]

1. d4 {[%clk 0:03:00.9]} 1... Nf6 {[%clk 0:02:59.2]} 2. c4 {[%clk 0:03:01.1]}
2... g6 {[%clk 0:02:58.7]} 3. Nf3 {[%clk 0:02:59.5]} 3... Bg7 {[%clk 0:02:57.9]}
4. Nc3 {[%clk 0:02:59.3]} 4... d5 {[%clk 0:02:57.9]} 5. cxd5 {[%clk 0:02:51.7]}
5... Nxd5 {[%clk 0:02:58.8]} 6. e4 {[%clk 0:02:51.8]} 6... Nxc3 {[%clk 0:02:59]}
7. bxc3 {[%clk 0:02:52.2]} 7... c5 {[%clk 0:02:59.7]} 8. Bb5+ {[%clk 0:02:51.1]}
8... Nc6 {[%clk 0:02:59.8]} 9. O-O {[%clk 0:02:37.1]} 9... O-O {[%clk
0:02:25.9]} 10. Bxc6 {[%clk 0:02:21.1]} 10... bxc6 {[%clk 0:02:25.5]} 11. Ba3
{[%clk 0:02:21.7]} 11... cxd4 {[%clk 0:02:14.4]} 12. Nxd4 {[%clk 0:02:18.9]}
12... Qc7 {[%clk 0:02:08.4]} 13. Qf3 {[%clk 0:01:45.3]} 13... Ba6 {[%clk
0:02:02.9]} 14. Rfd1 {[%clk 0:01:41.9]} 14... Rfd8 {[%clk 0:02:01.2]} 15. Rab1
{[%clk 0:01:34]} 15... Bc4 {[%clk 0:01:57.2]} 16. Nb3 {[%clk 0:01:20.8]} 16...
Qe5 {[%clk 0:01:50.7]} 17. Qg3 {[%clk 0:01:04.5]} 17... e6 {[%clk 0:01:37.5]}
18. Nd4 {[%clk 0:00:51]} 18... Qxg3 {[%clk 0:01:31]} 19. hxg3 {[%clk 0:00:49.5]}
19... Bxd4 {[%clk 0:01:25.4]} 20. Rxd4 {[%clk 0:00:41.4]} 20... Rxd4 {[%clk
0:01:24.7]} 21. cxd4 {[%clk 0:00:41.3]} 21... Bxa2 {[%clk 0:01:24]} 22. Rb7
{[%clk 0:00:41]} 22... Bc4 {[%clk 0:01:06.8]} 23. Bc5 {[%clk 0:00:40]} 23... a5
{[%clk 0:01:05.7]} 24. Ra7 {[%clk 0:00:34.9]} 24... Rxa7 {[%clk 0:01:04]} 25.
Bxa7 {[%clk 0:00:35.8]} 25... Kf8 {[%clk 0:01:01.1]} 26. Bc5+ {[%clk 0:00:32.3]}
26... Ke8 {[%clk 0:01:00.1]} 27. f4 {[%clk 0:00:30.5]} 27... f6 {[%clk
0:00:57.6]} 28. Kf2 {[%clk 0:00:30.6]} 28... Kd7 {[%clk 0:00:58]} 29. g4 {[%clk
0:00:29.6]} 29... Kc7 {[%clk 0:00:57.1]} 30. Ke3 {[%clk 0:00:28.1]} 30... Kb7
{[%clk 0:00:53.3]} 31. Kd2 {[%clk 0:00:23.9]} 31... Ka6 {[%clk 0:00:53.1]} 32.
Kc3 {[%clk 0:00:24.2]} 32... Kb5 {[%clk 0:00:53.7]} 33. g5 {[%clk 0:00:21.1]}
33... fxg5 {[%clk 0:00:49.4]} 34. fxg5 {[%clk 0:00:22]} 34... Bf1 {[%clk
0:00:45.1]} 35. g3 {[%clk 0:00:22.1]} 35... Bg2 {[%clk 0:00:41.7]} 36. e5 {[%clk
0:00:22.2]} 36... Bf3 {[%clk 0:00:41.2]} 37. Bd6 {[%clk 0:00:22.1]} 37... Bd1
{[%clk 0:00:37.1]} 38. Bc5 {[%clk 0:00:22.1]} 38... Ka6 {[%clk 0:00:36.7]} 39.
Bd6 {[%clk 0:00:22.1]} 39... Kb7 {[%clk 0:00:34.5]} 40. Bc5 {[%clk 0:00:22.3]}
40... Kc7 {[%clk 0:00:33.2]} 41. Bd6+ {[%clk 0:00:22.5]} 41... Kd7 {[%clk
0:00:32.4]} 42. Bc5 {[%clk 0:00:22.8]} 42... Ke8 {[%clk 0:00:29.8]} 43. Kd2
{[%clk 0:00:19.9]} 43... Bb3 {[%clk 0:00:27.1]} 44. Kc3 {[%clk 0:00:20.2]} 44...
Bd1 {[%clk 0:00:24.9]} 45. Kd2 {[%clk 0:00:20.3]} 45... Bb3 {[%clk 0:00:25]} 46.
Kc3 {[%clk 0:00:20.6]} 46... a4 {[%clk 0:00:25.9]} 47. Kd3 {[%clk 0:00:19.7]}
47... Kf7 {[%clk 0:00:25.5]} 48. Ke3 {[%clk 0:00:19.9]} 48... Kg7 {[%clk
0:00:25.9]} 49. Kf4 {[%clk 0:00:20.1]} 49... h6 {[%clk 0:00:25.9]} 50. gxh6+
{[%clk 0:00:19.9]} 50... Kxh6 {[%clk 0:00:26.8]} 51. g4 {[%clk 0:00:20.3]} 51...
g5+ {[%clk 0:00:26]} 52. Kg3 {[%clk 0:00:19.6]} 52... Bd1 {[%clk 0:00:26.8]} 53.
Kh3 {[%clk 0:00:18.7]} 53... Kg6 {[%clk 0:00:26]} 54. Kg3 {[%clk 0:00:18.8]}
54... Kf7 {[%clk 0:00:26.6]} 55. Kh3 {[%clk 0:00:07]} 55... Ke8 {[%clk 0:00:27]}
56. Kg3 {[%clk 0:00:06.7]} 56... Kd7 {[%clk 0:00:27.4]} 57. Kh3 {[%clk 0:00:07]}
57... Kc7 {[%clk 0:00:28]} 58. Be7 {[%clk 0:00:07.1]} 58... Kb7 {[%clk
0:00:21.5]} 59. Bxg5 {[%clk 0:00:07.3]} 59... a3 {[%clk 0:00:21.6]} 60. Bc1
{[%clk 0:00:07.3]} 60... a2 {[%clk 0:00:20.1]} 61. Bb2 {[%clk 0:00:07.4]} 61...
Bc2 {[%clk 0:00:20.1]} 62. Kg3 {[%clk 0:00:07]} 62... Kb6 {[%clk 0:00:20.5]} 63.
Kf2 {[%clk 0:00:07.3]} 63... Kb5 {[%clk 0:00:20.9]} 64. Ke2 {[%clk 0:00:07.5]}
64... Kb4 {[%clk 0:00:21.3]} 65. Kd2 {[%clk 0:00:07.8]} 65... Kb3 {[%clk
0:00:21.5]} 66. Ba1 {[%clk 0:00:07.7]} 66... Bg6 {[%clk 0:00:21.4]} 67. g5
{[%clk 0:00:06.8]} 67... Kc4 {[%clk 0:00:21.1]} 68. Ke3 {[%clk 0:00:06.3]} 68...
Bf5 {[%clk 0:00:19.2]} 69. Kd2 {[%clk 0:00:06.5]} 69... Kd5 {[%clk 0:00:16.4]}
70. Ke3 {[%clk 0:00:06.8]} 70... Bg6 {[%clk 0:00:16.2]} 71. Bb2 {[%clk
0:00:06.7]} 71... Kc4 {[%clk 0:00:15.8]} 72. Kd2 {[%clk 0:00:06.9]} 72... Kb3
{[%clk 0:00:16.2]} 73. Ba1 {[%clk 0:00:07.2]} 73... Bf5 {[%clk 0:00:13.2]} 74.
Kc1 {[%clk 0:00:07.1]} 74... Kc4 {[%clk 0:00:12.5]} 75. Kd2 {[%clk 0:00:07.4]}
75... Bh7 {[%clk 0:00:11.2]} 76. Ke3 {[%clk 0:00:06.2]} 76... c5 {[%clk
0:00:09.7]} 77. dxc5 {[%clk 0:00:05.5]} 77... Kxc5 {[%clk 0:00:10.6]} 78. Kd2
{[%clk 0:00:05.9]} 78... Kc4 {[%clk 0:00:11.1]} 79. Kc1 {[%clk 0:00:05.4]} 79...
Kd5 {[%clk 0:00:09.4]} 80. Kd2 {[%clk 0:00:05.4]} 80... Ke4 {[%clk 0:00:08.4]}
81. Kc3 {[%clk 0:00:05.4]} 81... Kf4 {[%clk 0:00:07.8]} 82. Kb3 {[%clk
0:00:05.6]} 82... Bb1 {[%clk 0:00:04.6]} 83. Kb2 {[%clk 0:00:05.2]} 83... Kxg5
{[%clk 0:00:04.5]} 84. Kc1 {[%clk 0:00:05.7]} 84... Kf5 {[%clk 0:00:05]} 85. Kd2
{[%clk 0:00:06.1]} 85... Ke4 {[%clk 0:00:05.9]} 86. Kc3 {[%clk 0:00:06.3]} 86...
Kxe5 {[%clk 0:00:06.3]} 87. Kd2+ {[%clk 0:00:06.1]} 87... Kf4 {[%clk 0:00:06.9]}
88. Ke2 {[%clk 0:00:06.1]} 88... Ke4 {[%clk 0:00:06.8]} 89. Bb2 {[%clk
0:00:05.8]} 89... Bd3+ {[%clk 0:00:06.1]} 90. Kd2 {[%clk 0:00:04.7]} 90... Bc4
{[%clk 0:00:06]} 91. Ba1 {[%clk 0:00:04.8]} 91... Bd5 {[%clk 0:00:06.1]} 92. Ke2
{[%clk 0:00:04.9]} 92... Bc4+ {[%clk 0:00:04.8]} 93. Kd2 {[%clk 0:00:05.2]}
93... Bb5 {[%clk 0:00:03.8]} 94. Kc1 {[%clk 0:00:04.9]} 94... Ke3 {[%clk
0:00:04.7]} 95. Bc3 {[%clk 0:00:02.8]} 95... Bc4 {[%clk 0:00:05]} 96. Kb2 {[%clk
0:00:03]} 96... Kd3 {[%clk 0:00:05.9]} 97. Be5 {[%clk 0:00:03]} 97... Ke4 {[%clk
0:00:05.6]} 98. Bf6 {[%clk 0:00:03.7]} 98... Kf5 {[%clk 0:00:05.7]} 99. Bg7
{[%clk 0:00:04.2]} 99... Kg6 {[%clk 0:00:06]} 100. Bc3 {[%clk 0:00:04.3]} 100...
Kf5 {[%clk 0:00:06.7]} 101. Ka1 {[%clk 0:00:04.4]} 101... Ke4 {[%clk 0:00:07.2]}
102. Bb2 {[%clk 0:00:04.7]} 102... Kd3 {[%clk 0:00:08.1]} 103. Be5 {[%clk
0:00:04.9]} 103... Ke4 {[%clk 0:00:07.5]} 104. Bb2 {[%clk 0:00:05.1]} 104... Kf5
{[%clk 0:00:08.2]} 105. Bc3 {[%clk 0:00:05.3]} 105... Bd5 {[%clk 0:00:07.6]}
106. Bb2 {[%clk 0:00:05.5]} 106... e5 {[%clk 0:00:07.3]} 107. Bxe5 {[%clk
0:00:05.5]} 107... Kxe5 {[%clk 0:00:07.9]} 108. Kb2 {[%clk 0:00:06]} 108... Kd4
{[%clk 0:00:08.8]} 109. Ka1 {[%clk 0:00:06.5]} 109... Kc3 {[%clk 0:00:09.7]}
1/2-1/2

[Event "Early-Titled-Tuesday-Blitz-March-26-2024"]
[Site "Chess.com"]
[Date "2024.03.26"]
[Round "2"]
[White "joksijoksi"]
[Black "hsd2016"]
[Result "1-0"]
[WhiteElo "2529"]
[BlackElo "2310"]
[TimeControl "180+1"]
[EndTime "8:11:45 PDT"]
[Termination "joksijoksi won by resignation"]

1. d4 {[%clk 0:02:59.8]} 1... h6 {[%clk 0:02:56.6]} 2. c4 {[%clk 0:02:58.8]}
2... b6 {[%clk 0:02:53.8]} 3. Nf3 {[%clk 0:02:57.4]} 3... Bb7 {[%clk 0:02:54.4]}
4. Nc3 {[%clk 0:02:55.6]} 4... Nf6 {[%clk 0:02:55]} 5. Bf4 {[%clk 0:02:55.4]}
5... d5 {[%clk 0:02:54.1]} 6. e3 {[%clk 0:02:54.6]} 6... e6 {[%clk 0:02:53.8]}
7. Rc1 {[%clk 0:02:53.6]} 7... c6 {[%clk 0:02:51.7]} 8. Ne5 {[%clk 0:02:52.5]}
8... Nbd7 {[%clk 0:02:51.1]} 9. Bg3 {[%clk 0:02:52.3]} 9... Be7 {[%clk
0:02:50.5]} 10. f4 {[%clk 0:02:52.6]} 10... Nxe5 {[%clk 0:02:50.4]} 11. fxe5
{[%clk 0:02:52.6]} 11... Nd7 {[%clk 0:02:50.3]} 12. cxd5 {[%clk 0:02:50.9]}
12... exd5 {[%clk 0:02:50.1]} 13. Bd3 {[%clk 0:02:49.5]} 13... Bh4 {[%clk
0:02:50.1]} 14. O-O {[%clk 0:02:49.2]} 14... Bxg3 {[%clk 0:02:50.4]} 15. hxg3
{[%clk 0:02:50.1]} 15... Qg5 {[%clk 0:02:50.6]} 16. Qf3 {[%clk 0:02:48.2]} 16...
O-O {[%clk 0:02:49.4]} 17. e4 {[%clk 0:02:46.8]} 17... dxe4 {[%clk 0:02:48.3]}
18. Nxe4 {[%clk 0:02:47.7]} 18... c5 {[%clk 0:02:47.3]} 19. Nxg5 {[%clk
0:02:47.2]} 1-0

[Event "Early-Titled-Tuesday-Blitz-March-26-2024"]
[Site "Chess.com"]
[Date "2024.03.26"]
[Round "2"]
[White "Anton_Demchenko"]
[Black "Midgardsormur"]
[Result "1-0"]
[WhiteElo "3007"]
[BlackElo "2443"]
[TimeControl "180+1"]
[EndTime "8:12:17 PDT"]
[Termination "Anton_Demchenko won by resignation"]

1. e4 {[%clk 0:02:55.4]} 1... e5 {[%clk 0:02:57.1]} 2. Nf3 {[%clk 0:02:55.1]}
2... Nc6 {[%clk 0:02:57.4]} 3. Bc4 {[%clk 0:02:55.8]} 3... Nf6 {[%clk
0:02:55.3]} 4. d3 {[%clk 0:02:56.3]} 4... h6 {[%clk 0:02:53.9]} 5. O-O {[%clk
0:02:55.3]} 5... d6 {[%clk 0:02:52.2]} 6. c3 {[%clk 0:02:53.6]} 6... g6 {[%clk
0:02:49.6]} 7. d4 {[%clk 0:02:50.9]} 7... Bg7 {[%clk 0:02:48.9]} 8. dxe5 {[%clk
0:02:50.2]} 8... dxe5 {[%clk 0:02:46.5]} 9. Qxd8+ {[%clk 0:02:49.4]} 9... Nxd8
{[%clk 0:02:46.5]} 10. Nxe5 {[%clk 0:02:44]} 10... Nxe4 {[%clk 0:02:42.5]} 11.
Re1 {[%clk 0:02:44.5]} 11... Bxe5 {[%clk 0:02:24.1]} 12. Rxe4 {[%clk 0:02:43.6]}
12... f6 {[%clk 0:02:16.7]} 13. f4 {[%clk 0:02:41.1]} 13... Bf5 {[%clk
0:02:16.2]} 14. Re1 {[%clk 0:02:41.1]} 1-0

[Event "Early-Titled-Tuesday-Blitz-March-26-2024"]
[Site "Chess.com"]
[Date "2024.03.26"]
[Round "2"]
[White "LLariMarc"]
[Black "BozeKat"]
[Result "1-0"]
[WhiteElo "2466"]
[BlackElo "2070"]
[TimeControl "180+1"]
[EndTime "8:12:35 PDT"]
[Termination "LLariMarc won by resignation"]

1. d4 {[%clk 0:03:00.9]} 1... d5 {[%clk 0:02:59.2]} 2. Nf3 {[%clk 0:03:01.2]}
2... Nf6 {[%clk 0:02:58.7]} 3. Bg5 {[%clk 0:03:01.8]} 3... e6 {[%clk 0:02:58]}
4. e3 {[%clk 0:03:02]} 4... Nbd7 {[%clk 0:02:57.7]} 5. Nbd2 {[%clk 0:03:02.7]}
5... c6 {[%clk 0:02:52.7]} 6. Bd3 {[%clk 0:03:03.1]} 6... Bd6 {[%clk 0:02:50.7]}
7. O-O {[%clk 0:03:03.4]} 7... O-O {[%clk 0:02:50.8]} 8. c4 {[%clk 0:03:02.1]}
8... b6 {[%clk 0:02:49.5]} 9. Rc1 {[%clk 0:03:01.5]} 9... Ba6 {[%clk 0:02:48.8]}
10. Qe2 {[%clk 0:03:02]} 10... h6 {[%clk 0:02:44.1]} 11. Bh4 {[%clk 0:03:01.4]}
11... Be7 {[%clk 0:02:43.6]} 12. Rc2 {[%clk 0:02:55.6]} 12... c5 {[%clk
0:02:37.9]} 13. Rfc1 {[%clk 0:02:54.7]} 13... Rc8 {[%clk 0:02:29.1]} 14. cxd5
{[%clk 0:02:41.3]} 14... Nxd5 {[%clk 0:02:27.7]} 15. Bxa6 {[%clk 0:02:40.8]}
15... Bxh4 {[%clk 0:02:06.2]} 16. Bxc8 {[%clk 0:02:39.6]} 1-0

[Event "Early-Titled-Tuesday-Blitz-March-26-2024"]
[Site "Chess.com"]
[Date "2024.03.26"]
[Round "2"]
[White "Masterbeaterr"]
[Black "MyDream003"]
[Result "0-1"]
[WhiteElo "2445"]
[BlackElo "2779"]
[TimeControl "180+1"]
[EndTime "8:13:20 PDT"]
[Termination "MyDream003 won by resignation"]

1. d4 {[%clk 0:03:00.9]} 1... Nf6 {[%clk 0:02:59.4]} 2. c4 {[%clk 0:03:00.5]}
2... e6 {[%clk 0:02:59.7]} 3. Nc3 {[%clk 0:03:00]} 3... Bb4 {[%clk 0:02:58.6]}
4. f3 {[%clk 0:03:00.3]} 4... c5 {[%clk 0:02:57.2]} 5. a3 {[%clk 0:03:01.2]}
5... Ba5 {[%clk 0:02:48.8]} 6. dxc5 {[%clk 0:03:00.4]} 6... Bxc3+ {[%clk
0:02:49]} 7. bxc3 {[%clk 0:03:00.9]} 7... Qa5 {[%clk 0:02:48.6]} 8. e4 {[%clk
0:02:58.6]} 8... Na6 {[%clk 0:02:43.3]} 9. Qb3 {[%clk 0:02:48.2]} 9... Nxc5
{[%clk 0:02:40.5]} 10. Qb4 {[%clk 0:02:48.5]} 10... Qc7 {[%clk 0:02:40.8]} 11.
Be3 {[%clk 0:02:45.9]} 11... b6 {[%clk 0:02:36.4]} 12. Nh3 {[%clk 0:02:39.2]}
12... O-O {[%clk 0:02:32.9]} 13. Be2 {[%clk 0:02:39.5]} 13... Bb7 {[%clk
0:02:30.8]} 14. O-O {[%clk 0:02:38.7]} 14... d6 {[%clk 0:02:31.2]} 15. Rad1
{[%clk 0:02:37.4]} 15... h6 {[%clk 0:02:20.5]} 16. Nf2 {[%clk 0:02:33.4]} 16...
Rac8 {[%clk 0:02:18.9]} 17. Rd2 {[%clk 0:02:26.4]} 17... Ba6 {[%clk 0:02:15]}
18. Rfd1 {[%clk 0:02:25.9]} 18... Nb7 {[%clk 0:02:15.1]} 19. Qa4 {[%clk
0:02:20.5]} 19... Na5 {[%clk 0:02:06.6]} 20. Rxd6 {[%clk 0:02:17.2]} 20... Bxc4
{[%clk 0:02:06.9]} 21. Bxc4 {[%clk 0:02:03.1]} 21... Nxc4 {[%clk 0:02:07.8]} 22.
Rc6 {[%clk 0:02:03.5]} 22... Qxc6 {[%clk 0:02:07.7]} 0-1

[Event "Early-Titled-Tuesday-Blitz-March-26-2024"]
[Site "Chess.com"]
[Date "2024.03.26"]
[Round "2"]
[White "RamonManon0g"]
[Black "bazar-wokzal"]
[Result "0-1"]
[WhiteElo "2381"]
[BlackElo "2563"]
[TimeControl "180+1"]
[EndTime "8:13:24 PDT"]
[Termination "bazar-wokzal won by resignation"]

1. e4 {[%clk 0:03:00.9]} 1... Nc6 {[%clk 0:02:59.5]} 2. d4 {[%clk 0:02:59.9]}
2... d5 {[%clk 0:02:59.5]} 3. exd5 {[%clk 0:02:53.8]} 3... Qxd5 {[%clk
0:02:55.2]} 4. Nf3 {[%clk 0:02:53]} 4... Bg4 {[%clk 0:02:54.8]} 5. Be2 {[%clk
0:02:52.2]} 5... O-O-O {[%clk 0:02:54.4]} 6. c3 {[%clk 0:02:52.3]} 6... Nf6
{[%clk 0:02:53.9]} 7. O-O {[%clk 0:02:51.9]} 7... e5 {[%clk 0:02:54]} 8. dxe5
{[%clk 0:02:51.3]} 8... Nxe5 {[%clk 0:02:53.8]} 9. Qxd5 {[%clk 0:02:47]} 9...
Rxd5 {[%clk 0:02:51.3]} 10. Nxe5 {[%clk 0:02:14]} 10... Bxe2 {[%clk 0:02:46.8]}
11. Re1 {[%clk 0:02:12.2]} 11... Rxe5 {[%clk 0:02:45.6]} 12. Bf4 {[%clk
0:01:51.2]} 12... Re4 {[%clk 0:02:41.7]} 13. Bg3 {[%clk 0:01:42.8]} 13... Bd3
{[%clk 0:02:35.4]} 14. Nd2 {[%clk 0:01:30.2]} 14... Rxe1+ {[%clk 0:02:33.9]} 15.
Rxe1 {[%clk 0:01:31.1]} 15... Bc5 {[%clk 0:02:32.1]} 16. Nb3 {[%clk 0:01:22.3]}
16... Bb6 {[%clk 0:02:29.2]} 17. c4 {[%clk 0:01:22.2]} 17... Bxc4 {[%clk
0:02:27.3]} 0-1

[Event "Early-Titled-Tuesday-Blitz-March-26-2024"]
[Site "Chess.com"]
[Date "2024.03.26"]
[Round "2"]
[White "Lucky_Puncher"]
[Black "BoltzMannS"]
[Result "1-0"]
[WhiteElo "2478"]
[BlackElo "2167"]
[TimeControl "180+1"]
[EndTime "8:13:57 PDT"]
[Termination "Lucky_Puncher won by checkmate"]

1. d4 {[%clk 0:03:00.9]} 1... Nf6 {[%clk 0:03:00.9]} 2. c4 {[%clk 0:02:59.7]}
2... g6 {[%clk 0:03:01.5]} 3. Nc3 {[%clk 0:02:59.3]} 3... Bg7 {[%clk 0:03:02.1]}
4. e4 {[%clk 0:03:00]} 4... d6 {[%clk 0:03:02.7]} 5. h3 {[%clk 0:03:00.7]} 5...
O-O {[%clk 0:03:02.8]} 6. Be3 {[%clk 0:03:01.3]} 6... Nbd7 {[%clk 0:03:02.5]} 7.
Nf3 {[%clk 0:02:56.5]} 7... a6 {[%clk 0:03:01.2]} 8. Be2 {[%clk 0:02:55.4]} 8...
c5 {[%clk 0:02:56.4]} 9. O-O {[%clk 0:02:52.6]} 9... cxd4 {[%clk 0:02:54.5]} 10.
Nxd4 {[%clk 0:02:52.6]} 10... Qc7 {[%clk 0:02:51.2]} 11. Rc1 {[%clk 0:02:52.4]}
11... b6 {[%clk 0:02:47.9]} 12. Nd5 {[%clk 0:02:48.6]} 12... Nxd5 {[%clk
0:02:47.5]} 13. cxd5 {[%clk 0:02:49.5]} 13... Qd8 {[%clk 0:02:42.2]} 14. Nc6
{[%clk 0:02:45.1]} 14... Qe8 {[%clk 0:02:42.2]} 15. Qb3 {[%clk 0:02:44.9]} 15...
b5 {[%clk 0:02:39.3]} 16. Rfd1 {[%clk 0:02:39.3]} 16... Bb7 {[%clk 0:02:38.8]}
17. Na5 {[%clk 0:02:39.6]} 17... Bc8 {[%clk 0:02:36.9]} 18. Rc2 {[%clk
0:02:34.7]} 18... Ne5 {[%clk 0:02:32.5]} 19. Rdc1 {[%clk 0:02:33.4]} 19... Bd7
{[%clk 0:02:31.7]} 20. f4 {[%clk 0:02:31.1]} 20... Nc4 {[%clk 0:02:31.8]} 21.
Bxc4 {[%clk 0:02:19.8]} 21... bxc4 {[%clk 0:02:32.7]} 22. Rxc4 {[%clk
0:02:20.7]} 22... e6 {[%clk 0:02:28.5]} 23. R4c2 {[%clk 0:02:08.3]} 23... exd5
{[%clk 0:02:25.1]} 24. Qxd5 {[%clk 0:02:08.3]} 24... Be6 {[%clk 0:02:25.4]} 25.
Qxd6 {[%clk 0:02:05]} 25... Qa4 {[%clk 0:02:25.6]} 26. Nc6 {[%clk 0:01:52.4]}
26... Qxe4 {[%clk 0:02:23.9]} 27. Bd4 {[%clk 0:01:47.5]} 27... Bh6 {[%clk
0:02:13.9]} 28. Ne7# {[%clk 0:01:34.1]} 1-0

[Event "Early-Titled-Tuesday-Blitz-March-26-2024"]
[Site "Chess.com"]
[Date "2024.03.26"]
[Round "2"]
[White "frequentblunders"]
[Black "LileKoridze"]
[Result "1-0"]
[WhiteElo "2189"]
[BlackElo "2464"]
[TimeControl "180+1"]
[EndTime "8:14:03 PDT"]
[Termination "frequentblunders won by resignation"]

1. d3 {[%clk 0:03:00]} 1... d5 {[%clk 0:03:00.1]} 2. f3 {[%clk 0:03:00.4]} 2...
e5 {[%clk 0:02:58.7]} 3. e4 {[%clk 0:03:01.3]} 3... c5 {[%clk 0:02:58.5]} 4. Nc3
{[%clk 0:03:01.4]} 4... d4 {[%clk 0:02:54.8]} 5. Nce2 {[%clk 0:03:02]} 5... Nf6
{[%clk 0:02:54.6]} 6. g4 {[%clk 0:03:02.2]} 6... h6 {[%clk 0:02:54.3]} 7. h4
{[%clk 0:03:02.4]} 7... Be7 {[%clk 0:02:53]} 8. c4 {[%clk 0:02:58]} 8... dxc3
{[%clk 0:02:52.4]} 9. bxc3 {[%clk 0:02:57.3]} 9... Nc6 {[%clk 0:02:52.9]} 10.
Be3 {[%clk 0:02:53.8]} 10... b6 {[%clk 0:02:51.1]} 11. Nh3 {[%clk 0:02:50.2]}
11... Ba6 {[%clk 0:02:50.7]} 12. Ng3 {[%clk 0:02:47.8]} 12... Qd7 {[%clk
0:02:48.9]} 13. Be2 {[%clk 0:02:44.6]} 13... Rd8 {[%clk 0:02:48.7]} 14. Nf5
{[%clk 0:02:40.8]} 14... Kf8 {[%clk 0:02:46.3]} 15. Nxe7 {[%clk 0:02:39.8]}
15... Kxe7 {[%clk 0:02:44.9]} 16. Nf2 {[%clk 0:02:30.7]} 16... g6 {[%clk
0:02:42.4]} 17. O-O {[%clk 0:02:29.6]} 17... Kf8 {[%clk 0:02:37.7]} 18. Qd2
{[%clk 0:02:24.7]} 18... Kg7 {[%clk 0:02:36.3]} 19. Rad1 {[%clk 0:02:21.6]}
19... Qe6 {[%clk 0:02:35.2]} 20. Kg2 {[%clk 0:02:19.1]} 20... Rd7 {[%clk
0:02:33.4]} 21. g5 {[%clk 0:02:17.5]} 21... hxg5 {[%clk 0:02:32.3]} 22. hxg5
{[%clk 0:02:16.3]} 22... Nh5 {[%clk 0:02:32.5]} 23. Rh1 {[%clk 0:02:04.1]} 23...
Rhd8 {[%clk 0:02:32]} 24. f4 {[%clk 0:01:55.9]} 24... exf4 {[%clk 0:02:28.8]}
25. Bxf4 {[%clk 0:01:48.7]} 25... Nxf4+ {[%clk 0:02:23.4]} 26. Qxf4 {[%clk
0:01:49.6]} 26... Rh8 {[%clk 0:02:22.9]} 27. Rxh8 {[%clk 0:01:47.2]} 27... Kxh8
{[%clk 0:02:23.8]} 28. Qh4+ {[%clk 0:01:43.3]} 28... Kg7 {[%clk 0:02:23.7]} 29.
Qh6+ {[%clk 0:01:42.4]} 29... Kg8 {[%clk 0:02:23.7]} 30. Rh1 {[%clk 0:01:41.9]}
30... Qe5 {[%clk 0:02:22.2]} 31. Ng4 {[%clk 0:01:37.6]} 31... Qg7 {[%clk
0:02:16.4]} 32. Nf6+ {[%clk 0:01:34.2]} 1-0

[Event "Early-Titled-Tuesday-Blitz-March-26-2024"]
[Site "Chess.com"]
[Date "2024.03.26"]
[Round "2"]
[White "manitodeplomo"]
[Black "Philippians46"]
[Result "0-1"]
[WhiteElo "2673"]
[BlackElo "3019"]
[TimeControl "180+1"]
[EndTime "8:14:14 PDT"]
[Termination "Philippians46 won by resignation"]

1. d4 {[%clk 0:03:00.9]} 1... Nf6 {[%clk 0:03:00]} 2. c4 {[%clk 0:02:58.7]} 2...
g6 {[%clk 0:03:00.5]} 3. Nc3 {[%clk 0:02:57]} 3... d5 {[%clk 0:03:01.1]} 4. Bf4
{[%clk 0:02:56.1]} 4... Bg7 {[%clk 0:03:00.1]} 5. e3 {[%clk 0:02:55.8]} 5... O-O
{[%clk 0:02:59.8]} 6. Rc1 {[%clk 0:02:54.9]} 6... c5 {[%clk 0:02:59.6]} 7. dxc5
{[%clk 0:02:55.8]} 7... Be6 {[%clk 0:02:59.8]} 8. Qb3 {[%clk 0:02:45]} 8... Na6
{[%clk 0:02:56.4]} 9. Qxb7 {[%clk 0:02:40.5]} 9... Nxc5 {[%clk 0:02:56.4]} 10.
Qb5 {[%clk 0:02:40.5]} 10... Rc8 {[%clk 0:02:52.2]} 11. Nf3 {[%clk 0:02:38.8]}
11... dxc4 {[%clk 0:02:48.9]} 12. Ng5 {[%clk 0:02:32.7]} 12... Bf5 {[%clk
0:02:25.8]} 13. Bxc4 {[%clk 0:02:17.3]} 13... Nd3+ {[%clk 0:02:07.2]} 14. Bxd3
{[%clk 0:02:13.9]} 14... Bxd3 {[%clk 0:02:08.1]} 15. Qb7 {[%clk 0:01:59.8]}
15... Nd5 {[%clk 0:02:04.4]} 16. Nf3 {[%clk 0:01:22.6]} 16... Nxc3 {[%clk
0:02:00.3]} 17. bxc3 {[%clk 0:01:23.5]} 17... Bxc3+ {[%clk 0:01:57.4]} 18. Rxc3
{[%clk 0:01:20.5]} 18... Rxc3 {[%clk 0:01:58.3]} 19. e4 {[%clk 0:01:17.1]} 19...
Qa5 {[%clk 0:01:55.3]} 0-1

[Event "Early-Titled-Tuesday-Blitz-March-26-2024"]
[Site "Chess.com"]
[Date "2024.03.26"]
[Round "2"]
[White "sergoy"]
[Black "Charodej1"]
[Result "1-0"]
[WhiteElo "2917"]
[BlackElo "2441"]
[TimeControl "180+1"]
[EndTime "8:14:30 PDT"]
[Termination "sergoy won by resignation"]

1. d4 {[%clk 0:03:00]} 1... Nf6 {[%clk 0:02:59.8]} 2. c4 {[%clk 0:03:00]} 2...
e6 {[%clk 0:02:59.8]} 3. Nf3 {[%clk 0:02:59.8]} 3... Bb4+ {[%clk 0:02:59.2]} 4.
Nbd2 {[%clk 0:02:59.4]} 4... O-O {[%clk 0:02:57.6]} 5. a3 {[%clk 0:02:59.2]}
5... Be7 {[%clk 0:02:57.1]} 6. e4 {[%clk 0:02:59.2]} 6... d6 {[%clk 0:02:52.2]}
7. Be2 {[%clk 0:02:58.4]} 7... a5 {[%clk 0:02:47.3]} 8. b3 {[%clk 0:02:58]} 8...
Nc6 {[%clk 0:02:45.5]} 9. Bb2 {[%clk 0:02:57.7]} 9... Nd7 {[%clk 0:02:40.4]} 10.
O-O {[%clk 0:02:55.5]} 10... e5 {[%clk 0:02:36.2]} 11. d5 {[%clk 0:02:55]} 11...
Ncb8 {[%clk 0:02:35.6]} 12. b4 {[%clk 0:02:54.9]} 12... f5 {[%clk 0:02:30.6]}
13. exf5 {[%clk 0:02:54.4]} 13... Rxf5 {[%clk 0:02:30.3]} 14. c5 {[%clk
0:02:49.6]} 14... Nf6 {[%clk 0:02:19.6]} 15. cxd6 {[%clk 0:02:32.1]} 15... cxd6
{[%clk 0:02:18.7]} 16. Nc4 {[%clk 0:02:32.1]} 16... axb4 {[%clk 0:02:08.2]} 17.
axb4 {[%clk 0:02:31.8]} 17... Rxa1 {[%clk 0:02:08.6]} 18. Bxa1 {[%clk
0:02:29.8]} 18... Na6 {[%clk 0:02:06.7]} 19. Qb3 {[%clk 0:02:25.7]} 19... Kh8
{[%clk 0:01:46.8]} 20. Rd1 {[%clk 0:02:14.9]} 20... e4 {[%clk 0:01:22.1]} 21.
Nd4 {[%clk 0:02:14.7]} 21... Rxd5 {[%clk 0:01:11.2]} 22. Ne3 {[%clk 0:02:15.2]}
22... Rg5 {[%clk 0:01:02.4]} 23. h4 {[%clk 0:02:12.5]} 23... Re5 {[%clk
0:00:57.8]} 24. Bxa6 {[%clk 0:02:08.3]} 24... bxa6 {[%clk 0:00:54.3]} 25. Nc6
{[%clk 0:02:08.3]} 1-0